fUSD/lending_fUSD_20241118
["ID","MTS","AMOUNT","RATE_DAILY","PERIOD"]
[342500711,1731935443386,-671.953119,9.993e-05,2]
[342500712,1731935443395,-379.32354045,9.993e-05,2]
[342500713,1731935443404,-500.0,9.998e-05,2]
[342500714,1731935443413,-500.0,9.998e-05,2]
[342500715,1731935443422,-500.0,9.998e-05,2]
[342500716,1731935443431,-500.0,9.998e-05,2]
[342500717,1731935443439,-500.0,9.998e-05,2]
[342500718,1731935443448,-500.0,9.998e-05,2]
[342500719,1731935443457,-286.31800175,9.998e-05,2]
[342500720,1731935443471,-213.68199825,9.998e-05,2]
[342500721,1731935443480,-180.8990152,9.998e-05,2]
[342500722,1731935443491,-319.1009848,9.998e-05,2]
[342500723,1731935443500,-67.35427056,9.998e-05,2]
[342500724,1731935443510,-404.83344894,9.998e-05,2]
[342500725,1731935443522,-27.8122805,9.998e-05,2]
[342500726,1731935443531,-500.0,9.998e-05,2]
[342500727,1731935443540,-501.02667811,9.998e-05,2]
[342500728,1731935443549,-500.0,9.998e-05,2]
[342500730,1731935443557,-500.0,9.998e-05,2]
[342500732,1731935443566,-501.59205066,9.998e-05,2]
[342500734,1731935443575,-500.0,9.998e-05,2]
[342500736,1731935443584,-504.03913343,9.998e-05,2]
[342500738,1731935443593,-501.5465678,9.998e-05,2]
[342500740,1731935443601,-503.04422811,9.998e-05,2]
[342500742,1731935443610,-502.85943716,9.998e-05,2]
[342500743,1731935443619,-734.60345723,9.998e-05,2]
[342500744,1731935443632,-14586.69579928,9.998e-05,2]
[342500745,1731935443644,-500.0,9.998e-05,2]
[342500746,1731935443652,-502.80043272,9.998e-05,2]
[342500747,1731935443661,-500.0,9.998e-05,2]
[342500748,1731935443670,-500.37989413,9.998e-05,2]
[342500749,1731935443680,-500.0,9.998e-05,2]
[342500750,1731935443689,-505.04797871,9.998e-05,2]
[342500751,1731935443699,-528.24219664,9.998e-05,2]
[342500752,1731935443708,-501.44165026,9.998e-05,2]
[342500753,1731935443717,-500.0,9.998e-05,2]
[342500754,1731935443728,-501.47751671,9.998e-05,2]
[342500755,1731935443738,-502.47767228,9.998e-05,2]
[342500756,1731935443747,-502.65951944,9.998e-05,2]
[342500758,1731935443757,-500.0,9.998e-05,2]
[342500760,1731935443766,-500.0,9.998e-05,2]
[342500762,1731935443775,-500.29433138,9.998e-05,2]
[342500763,1731935443786,-500.0,9.998e-05,2]
[342500764,1731935443794,-502.91454426,9.998e-05,2]
[342500765,1731935443804,-500.0,9.998e-05,2]
[342500766,1731935443815,-500.0,9.998e-05,2]
[342500767,1731935443827,-500.0,9.998e-05,2]
[342500768,1731935443838,-500.0,9.998e-05,2]
[342500769,1731935443847,-500.0,9.998e-05,2]
[342500770,1731935443856,-424.18264003,9.998e-05,2]
[342500771,1731935443864,-500.0,9.998e-05,2]
[342500772,1731935443874,-500.0,9.998e-05,2]
[342500773,1731935443883,-500.0,9.998e-05,2]
[342500774,1731935443892,-501.28127304,9.998e-05,2]
[342500775,1731935443901,-500.0,9.998e-05,2]
[342500776,1731935443911,-400.25436381,9.998e-05,2]
[342500777,1731935443923,-500.0,9.998e-05,2]
[342500778,1731935443933,-502.84101248,9.998e-05,2]
[342500779,1731935443942,-502.00487708,9.998e-05,2]
[342500780,1731935443951,-500.0,9.998e-05,2]
[342500781,1731935443960,-500.0,9.998e-05,2]
[342500782,1731935443971,-500.0,9.998e-05,2]
[342500783,1731935443980,-505.42858205,9.998e-05,2]
[342500785,1731935443989,-500.0,9.998e-05,2]
[342500787,1731935443998,-508.66640731,9.998e-05,2]
[342500789,1731935444007,-501.29637116,9.998e-05,2]
[342500791,1731935444016,-500.0,9.998e-05,2]
[342500793,1731935444025,-502.41229613,9.998e-05,2]
[342500795,1731935444034,-500.0,9.998e-05,2]
[342500797,1731935444043,-500.0,9.998e-05,2]
[342500799,1731935444053,-507.11928827,9.998e-05,2]
[342500801,1731935444062,-500.0,9.998e-05,2]
[342500803,1731935444071,-269.81733338,9.998e-05,2]
[342500805,1731935444080,-235.00161704,9.998e-05,2]
[342500806,1731935444089,-500.0,9.998e-05,2]
[342500808,1731935444099,-500.0,9.998e-05,2]
[342500810,1731935444108,-500.0,9.998e-05,2]
[342500812,1731935444117,-500.0,9.998e-05,2]
[342500814,1731935444126,-509.4982135,9.998e-05,2]
[342500816,1731935444135,-380.92764019,9.998e-05,2]
[342500818,1731935444144,-500.0,9.998e-05,2]
[342500828,1731935444335,-427.08614808,9.998e-05,2]
[342500829,1731935444344,-256.34552101,9.998e-05,2]
[342500830,1731935444354,-500.0,9.998e-05,2]
[342500831,1731935444364,-502.50138105,9.998e-05,2]
[342500832,1731935444373,-502.29063724,9.998e-05,2]
[342500833,1731935444383,-502.65011537,9.998e-05,2]
[342500834,1731935444392,-429.13108642,9.998e-05,2]
[342500835,1731935444404,-70.86891358,9.998e-05,2]
[342500836,1731935444413,-500.0,9.998e-05,2]
[342500837,1731935444423,-500.0,9.998e-05,2]
[342500838,1731935444432,-506.01327779,9.998e-05,2]
[342500839,1731935444441,-500.0,9.998e-05,2]
[342500840,1731935444452,-503.18314971,9.998e-05,2]
[342500841,1731935444461,-501.85352954,9.998e-05,2]
[342500842,1731935444471,-503.5771856,9.998e-05,2]
[342500843,1731935444480,-511.0968324,9.998e-05,2]
[342500844,1731935444489,-500.0,9.998e-05,2]
[342500845,1731935444499,-500.37715256,9.998e-05,2]
[342500846,1731935444508,-503.53745897,9.998e-05,2]
[342500847,1731935444517,-500.0,9.998e-05,2]
[342500848,1731935444526,-501.3433888,9.998e-05,2]
[342500849,1731935444535,-500.0,9.998e-05,2]
[342500850,1731935444544,-500.0,9.998e-05,2]
[342500851,1731935444554,-500.0,9.998e-05,2]
[342500852,1731935444563,-1012.63,9.998e-05,2]
[342500853,1731935444572,-500.0,9.998e-05,2]
[342500854,1731935444582,-4583.33,9.998e-05,2]
[342500855,1731935444590,-500.0,9.998e-05,2]
[342500856,1731935444599,-500.0,9.998e-05,2]
[342500857,1731935444608,-500.0,9.998e-05,2]
[342500858,1731935444617,-316.64,9.998e-05,2]
[342500859,1731935444626,-500.0,9.998e-05,2]
[342500860,1731935444635,-500.0,9.998e-05,2]
[342500861,1731935444644,-500.0,9.998e-05,2]
[342500862,1731935444654,-500.0,9.998e-05,2]
[342500863,1731935444663,-500.0,9.998e-05,2]
[342500864,1731935444673,-792.44,9.998e-05,2]
[342500865,1731935444682,-500.0,9.998e-05,2]
[342500866,1731935444691,-537.9802964,9.998e-05,2]
[342500867,1731935444699,-500.0,9.998e-05,2]
[342500868,1731935444709,-500.0,9.998e-05,2]
[342500869,1731935444719,-500.0,9.998e-05,2]
[342500870,1731935444728,-500.0,9.998e-05,2]
[342500871,1731935444737,-500.0,9.998e-05,2]
[342500872,1731935444747,-624.95,9.998e-05,2]
[342500873,1731935444756,-373.14156186,9.998e-05,2]
[342500874,1731935444768,-126.85843814,9.998e-05,2]
[342500875,1731935444778,-500.0,9.998e-05,2]
[342500876,1731935444787,-500.0,9.998e-05,2]
[342500877,1731935444796,-500.0,9.998e-05,2]
[342500878,1731935444805,-500.0,9.998e-05,2]
[342500879,1731935444814,-500.0,9.998e-05,2]
[342500880,1731935444823,-158.11636296,9.998e-05,2]
[342500881,1731935444835,-341.88363704,9.998e-05,2]
[342500882,1731935444845,-558.62688226,9.998e-05,2]
[342500883,1731935444855,-500.0,9.998e-05,2]
[342500884,1731935444864,-500.0,9.998e-05,2]
[342500885,1731935444874,-500.0,9.998e-05,2]
[342500886,1731935444883,-500.0,9.998e-05,2]
[342500887,1731935444892,-500.0,9.998e-05,2]
[342500888,1731935444902,-531.64378045,9.998e-05,2]
[342500889,1731935444912,-500.0,9.998e-05,2]
[342500890,1731935444927,-174.27839747,9.998e-05,2]
[342500900,1731935446330,-500.0,9.863e-05,2]
[342500901,1731935446339,-325.72160253,9.998e-05,2]
[342500902,1731935446351,-500.0,9.998e-05,2]
[342500903,1731935446360,-500.63005007,9.999e-05,2]
[342500904,1731935446370,-235.61512848,9.999e-05,2]
[342500905,1731935446379,-500.0,9.999e-05,2]
[342500906,1731935446390,-632.13,9.999e-05,2]
[342500907,1731935446400,-501.74459808,9.999e-05,2]
[342500908,1731935446410,-500.0,9.999e-05,2]
[342500909,1731935446420,-500.0,9.999e-05,2]
[342500910,1731935446429,-500.0,9.999e-05,2]
[342500911,1731935446439,-575.95614427,9.999e-05,2]
[342500912,1731935446450,-501.41985023,9.999e-05,2]
[342500913,1731935446459,-500.0,9.999e-05,2]
[342500914,1731935446469,-500.0,9.999e-05,2]
[342500915,1731935446480,-482.36743295,9.999e-05,2]
[342500916,1731935446490,-500.0,9.999e-05,2]
[342500917,1731935446500,-500.0,9.999e-05,2]
[342500918,1731935446509,-256.70640425,9.999e-05,2]
[342500919,1731935446518,-501.79024802,9.999e-05,2]
[342500920,1731935446527,-485.48269681,9.999e-05,2]
[342500921,1731935446536,-500.0,9.999e-05,2]
[342500922,1731935446545,-500.0,9.999e-05,2]
[342500923,1731935446555,-500.0,9.999e-05,2]
[342500924,1731935446563,-500.0,9.999e-05,2]
[342500925,1731935446573,-228.73404731,9.999e-05,2]
[342500927,1731935446582,-504.17885667,9.999e-05,2]
[342500929,1731935446592,-501.56519417,9.999e-05,2]
[342500931,1731935446601,-500.0,9.999e-05,2]
[342500932,1731935446610,-500.0,9.999e-05,2]
[342500934,1731935446619,-500.0,9.999e-05,2]
[342500937,1731935446629,-500.0,9.999e-05,2]
[342500939,1731935446638,-500.0,9.999e-05,2]
[342500940,1731935446647,-500.0,9.999e-05,2]
[342500942,1731935446658,-500.0,9.999e-05,2]
[342500943,1731935446667,-500.0,9.999e-05,2]
[342500944,1731935446676,-500.0,9.999e-05,2]
[342500945,1731935446685,-500.0,9.999e-05,2]
[342500946,1731935446695,-500.0,9.999e-05,2]
[342500947,1731935446704,-500.0,9.999e-05,2]
[342500948,1731935446713,-500.0,9.999e-05,2]
[342500949,1731935446725,-500.0,9.999e-05,2]
[342500950,1731935446735,-500.0,9.999e-05,2]
[342500951,1731935446744,-500.0,9.999e-05,2]
[342500952,1731935446754,-500.0,9.999e-05,2]
[342500953,1731935446763,-501.09477472,9.999e-05,2]
[342500954,1731935446773,-500.85964776,9.999e-05,2]
[342500955,1731935446782,-500.0,9.999e-05,2]
[342500956,1731935446791,-500.0,9.999e-05,2]
[342500957,1731935446801,-500.0,9.999e-05,2]
[342500958,1731935446810,-500.0,9.999e-05,2]
[342500959,1731935446820,-500.0,9.999e-05,2]
[342500960,1731935446829,-500.0,9.999e-05,2]
[342500961,1731935446839,-500.0,9.999e-05,2]
[342500962,1731935446848,-500.0,9.999e-05,2]
[342500963,1731935446857,-500.0,9.999e-05,2]
[342500964,1731935446867,-500.0,9.999e-05,2]
[342500965,1731935446876,-500.0,9.999e-05,2]
[342500966,1731935446886,-500.0,9.999e-05,2]
[342500967,1731935446895,-500.0,9.999e-05,2]
[342500968,1731935446904,-500.0,9.999e-05,2]
[342500969,1731935446913,-500.0,9.999e-05,2]
[342500970,1731935446923,-500.0,9.999e-05,2]
[342500971,1731935446932,-500.0,9.999e-05,2]
[342500972,1731935446941,-500.0,9.999e-05,2]
[342500973,1731935446951,-500.0,9.999e-05,2]
[342500974,1731935446960,-500.0,9.999e-05,2]
[342500975,1731935446970,-500.45853913,9.999e-05,2]
[342500976,1731935446982,-500.0,9.999e-05,2]
[342500977,1731935446991,-500.0,9.999e-05,2]
[342500978,1731935447000,-500.0,9.999e-05,2]
[342500979,1731935447009,-500.0,9.999e-05,2]
[342500980,1731935447018,-500.0,9.999e-05,2]
[342500981,1731935447028,-500.0,9.999e-05,2]
[342500982,1731935447037,-500.0,9.999e-05,2]
[342500983,1731935447047,-500.0,9.999e-05,2]
[342500985,1731935447056,-500.0,9.999e-05,2]
[342500986,1731935447066,-451.28,9.999e-05,2]
[342500987,1731935447075,-500.0,9.999e-05,2]
[342500988,1731935447084,-430.87387764,9.999e-05,2]
[342500989,1731935447093,-509.37481271,9.999e-05,2]
[342500990,1731935447103,-500.0,9.999e-05,2]
[342500991,1731935447111,-500.0,9.999e-05,2]
[342500992,1731935447121,-500.0,9.999e-05,2]
[342500993,1731935447130,-500.0,9.999e-05,2]
[342500994,1731935447140,-500.0,9.999e-05,2]
[342500995,1731935447149,-500.0,9.999e-05,2]
[342500996,1731935447158,-500.0,9.999e-05,2]
[342500997,1731935447168,-500.0,9.999e-05,2]
[342500998,1731935447183,-504.71967291,9.999e-05,2]
[342500999,1731935447192,-500.0,9.999e-05,2]
[342501000,1731935447201,-500.0,9.999e-05,2]
[342501001,1731935447211,-500.0,9.999e-05,2]
[342501002,1731935447225,-500.0,9.999e-05,2]
[342501003,1731935447234,-500.0,9.999e-05,2]
[342501004,1731935447243,-500.0,9.999e-05,2]
[342501005,1731935447254,-500.0,9.999e-05,2]
[342501006,1731935447264,-500.0,9.999e-05,2]
[342501007,1731935447273,-500.0,9.999e-05,2]
[342501008,1731935447282,-500.0,9.999e-05,2]
[342501009,1731935447292,-428.88,9.999e-05,2]
[342501010,1731935447301,-500.0,9.999e-05,2]
[342501011,1731935447311,-500.0,9.999e-05,2]
[342501012,1731935447321,-500.0,9.999e-05,2]
[342501013,1731935447331,-500.0,9.999e-05,2]
[342501014,1731935447340,-500.0,9.999e-05,2]
[342501015,1731935447351,-500.0,9.999e-05,2]
[342501016,1731935447361,-500.0,9.999e-05,2]
[342501017,1731935447370,-500.0,9.999e-05,2]
[342501018,1731935447380,-500.0,9.999e-05,2]
[342501019,1731935447390,-500.0,9.999e-05,2]
[342501020,1731935447400,-500.0,9.999e-05,2]
[342501021,1731935447410,-500.0,9.999e-05,2]
[342501022,1731935447420,-500.0,9.999e-05,2]
[342501023,1731935447429,-500.0,9.999e-05,2]
[342501024,1731935447439,-500.0,9.999e-05,2]
[342501025,1731935447448,-500.0,9.999e-05,2]
[342501026,1731935447458,-500.0,9.999e-05,2]
[342501027,1731935447467,-500.0,9.999e-05,2]
[342501028,1731935447480,-500.0,9.999e-05,2]
[342501029,1731935447490,-500.0,9.999e-05,2]
[342501030,1731935447501,-500.0,9.999e-05,2]
[342501031,1731935447510,-500.0,9.999e-05,2]
[342501032,1731935447520,-500.0,9.999e-05,2]
[342501033,1731935447529,-500.0,9.999e-05,2]
[342501034,1731935447538,-500.0,9.999e-05,2]
[342501035,1731935447548,-500.0,9.999e-05,2]
[342501036,1731935447557,-500.0,9.999e-05,2]
[342501037,1731935447567,-500.0,9.999e-05,2]
[342501038,1731935447576,-500.0,9.999e-05,2]
[342501039,1731935447585,-500.0,9.999e-05,2]
[342501040,1731935447594,-500.0,9.999e-05,2]
[342501041,1731935447603,-500.0,9.999e-05,2]
[342501042,1731935447612,-500.0,9.999e-05,2]
[342501043,1731935447622,-500.0,9.999e-05,2]
[342501044,1731935447631,-500.0,9.999e-05,2]
[342501045,1731935447640,-500.0,9.999e-05,2]
[342501046,1731935447649,-500.0,9.999e-05,2]
[342501047,1731935447659,-500.0,9.999e-05,2]
[342501048,1731935447668,-326.64,9.999e-05,2]
[342501049,1731935447677,-500.0,9.999e-05,2]
[342501050,1731935447687,-500.0,9.999e-05,2]
[342501051,1731935447696,-500.0,9.999e-05,2]
[342501052,1731935447705,-500.0,9.999e-05,2]
[342501053,1731935447715,-500.0,9.999e-05,2]
[342501054,1731935447726,-500.0,9.999e-05,2]
[342501055,1731935447735,-500.0,9.999e-05,2]
[342501056,1731935447744,-500.0,9.999e-05,2]
[342501057,1731935447754,-500.0,9.999e-05,2]
[342501058,1731935447763,-500.0,9.999e-05,2]
[342501059,1731935447772,-500.0,9.999e-05,2]
[342501060,1731935447781,-500.0,9.999e-05,2]
[342501061,1731935447791,-500.0,9.999e-05,2]
[342501062,1731935447800,-500.0,9.999e-05,2]
[342501063,1731935447809,-500.0,9.999e-05,2]
[342501064,1731935447818,-500.0,9.999e-05,2]
[342501065,1731935447829,-500.0,9.999e-05,2]
[342501066,1731935447838,-500.0,9.999e-05,2]
[342501067,1731935447847,-500.0,9.999e-05,2]
[342501068,1731935447857,-500.0,9.999e-05,2]
[342501069,1731935447867,-500.0,9.999e-05,2]
[342501070,1731935447876,-500.0,9.999e-05,2]
[342501071,1731935447885,-500.0,9.999e-05,2]
[342501072,1731935447894,-500.0,9.999e-05,2]
[342501073,1731935447903,-500.0,9.999e-05,2]
[342501074,1731935447913,-500.0,9.999e-05,2]
[342501075,1731935447922,-500.0,9.999e-05,2]
[342501076,1731935447932,-500.0,9.999e-05,2]
[342501077,1731935447941,-324.81240194,9.999e-05,2]
[342501078,1731935447950,-500.0,9.999e-05,2]
[342501079,1731935447959,-500.0,9.999e-05,2]
[342501080,1731935447968,-138.42392257,9.999e-05,2]
[342501081,1731935448032,-361.57607743,9.999e-05,2]
[342501082,1731935448042,-500.0,9.999e-05,2]
[342501083,1731935448051,-305.23303201,9.999e-05,2]
[342501084,1731935448063,-194.76696799,9.999e-05,2]
[342501085,1731935448072,-500.0,9.999e-05,2]
[342501086,1731935448082,-500.0,9.999e-05,2]
[342501087,1731935448091,-500.0,9.999e-05,2]
[342501088,1731935448100,-500.0,9.999e-05,2]
[342501089,1731935448109,-500.0,9.999e-05,2]
[342501090,1731935448118,-500.0,9.999e-05,2]
[342501091,1731935448127,-500.0,9.999e-05,2]
[342501092,1731935448136,-500.0,9.999e-05,2]
[342501093,1731935448145,-500.0,9.999e-05,2]
[342501094,1731935448153,-500.0,9.999e-05,2]
[342501095,1731935448163,-500.0,9.999e-05,2]
[342501096,1731935448172,-202.24,9.999e-05,2]
[342501097,1731935448185,-500.0,9.999e-05,2]
[342501098,1731935448195,-365.37,9.999e-05,2]
[342501099,1731935448205,-500.0,9.999e-05,2]
[342501100,1731935448215,-228.07013555,9.999e-05,2]
[342501101,1731935448228,-500.0,9.999e-05,2]
[342501102,1731935448237,-1012.63,9.999e-05,2]
[342501103,1731935448247,-1012.63,9.999e-05,2]
[342501104,1731935448260,-1012.63,9.999e-05,2]
[342501105,1731935448269,-1012.63,9.999e-05,2]
[342501106,1731935448279,-1012.63,9.999e-05,2]
[342501107,1731935448288,-1012.63,9.999e-05,2]
[342501108,1731935448298,-1012.63,9.999e-05,2]
[342501109,1731935448308,-1012.63,9.999e-05,2]
[342501110,1731935448317,-1012.63,9.999e-05,2]
[342501111,1731935448328,-1012.63,9.999e-05,2]
[342501112,1731935448338,-1012.63,9.999e-05,2]
[342501113,1731935448350,-1012.63,9.999e-05,2]
[342501114,1731935448360,-1012.63,9.999e-05,2]
[342501115,1731935448370,-1012.63,9.999e-05,2]
[342501116,1731935448380,-1012.63,9.999e-05,2]
[342501117,1731935448390,-1012.63,9.999e-05,2]
[342501118,1731935448400,-1012.63,9.999e-05,2]
[342501119,1731935448410,-1012.63,9.999e-05,2]
[342501120,1731935448421,-1012.63,9.999e-05,2]
[342501121,1731935448431,-1012.63,9.999e-05,2]
[342501122,1731935448441,-1012.63,9.999e-05,2]
[342501123,1731935448452,-1012.63,9.999e-05,2]
[342501124,1731935448476,-1012.63950554,9.999e-05,2]
[342501125,1731935448486,-500.0,9.999e-05,2]
[342501126,1731935448495,-1500.0,9.999e-05,2]
[342501127,1731935448504,-500.0,9.999e-05,2]
[342501128,1731935448514,-500.0,9.999e-05,2]
[342501129,1731935448523,-527.5321278,9.999e-05,2]
[342501130,1731935448532,-4583.33,9.999e-05,2]
[342501131,1731935448543,-4583.33,9.999e-05,2]
[342501132,1731935448552,-4583.33,9.999e-05,2]
[342501133,1731935448562,-4583.33,9.999e-05,2]
[342501134,1731935448572,-4583.33,9.999e-05,2]
[342501135,1731935448582,-4534.49316314,9.999e-05,2]
[342501136,1731935448594,-48.83683686,9.999e-05,2]
[342501137,1731935448604,-4583.33,9.999e-05,2]
[342501138,1731935448613,-4583.33,9.999e-05,2]
[342501139,1731935448623,-4583.33,9.999e-05,2]
[342501140,1731935448632,-4583.33,9.999e-05,2]
[342501141,1731935448642,-4583.33,9.999e-05,2]
[342501142,1731935448651,-4583.33,9.999e-05,2]
[342501143,1731935448661,-4583.33,9.999e-05,2]
[342501144,1731935448671,-4583.33,9.999e-05,2]
[342501145,1731935448680,-4583.33,9.999e-05,2]
[342501146,1731935448689,-4583.33,9.999e-05,2]
[342501147,1731935448699,-4583.33,9.999e-05,2]
[342501148,1731935448708,-4583.33,9.999e-05,2]
[342501149,1731935448717,-4583.33,9.999e-05,2]
[342501150,1731935448729,-4583.33,9.999e-05,2]
[342501151,1731935448739,-4583.33,9.999e-05,2]
[342501152,1731935448749,-4583.41000001,9.999e-05,2]
[342501153,1731935448758,-500.0,9.999e-05,2]
[342501154,1731935448768,-500.0,9.999e-05,2]
[342501155,1731935448778,-500.0,9.999e-05,2]
[342501156,1731935448787,-500.0,9.999e-05,2]
[342501157,1731935448796,-500.0,9.999e-05,2]
[342501158,1731935448806,-500.0,9.999e-05,2]
[342501159,1731935448815,-500.0,9.999e-05,2]
[342501160,1731935448824,-500.0,9.999e-05,2]
[342501161,1731935448834,-500.0,9.999e-05,2]
[342501162,1731935448843,-365.17,9.999e-05,2]
[342501163,1731935448852,-792.44,9.999e-05,2]
[342501164,1731935448862,-792.44,9.999e-05,2]
[342501165,1731935448872,-792.44,9.999e-05,2]
[342501166,1731935448881,-792.44,9.999e-05,2]
[342501167,1731935448890,-792.44,9.999e-05,2]
[342501168,1731935448899,-792.44,9.999e-05,2]
[342501169,1731935448909,-792.44,9.999e-05,2]
[342501170,1731935448918,-792.44,9.999e-05,2]
[342501171,1731935448927,-792.44,9.999e-05,2]
[342501172,1731935448936,-792.44,9.999e-05,2]
[342501173,1731935448945,-792.44,9.999e-05,2]
[342501174,1731935448954,-792.44,9.999e-05,2]
[342501175,1731935448964,-792.44,9.999e-05,2]
[342501176,1731935448978,-500.0,9.999e-05,2]
[342501177,1731935448987,-792.44,9.999e-05,2]
[342501178,1731935448996,-68.47318964,9.999e-05,2]
[342501179,1731935449008,-595.40036254,9.999e-05,2]
[342501180,1731935449019,-128.56644782,9.999e-05,2]
[342501181,1731935449028,-549.43355165,9.999e-05,2]
[342501182,1731935449039,-243.00644835,9.999e-05,2]
[342501183,1731935449049,-632.51355165,9.999e-05,2]
[342501184,1731935449741,-159.92644835,9.999e-05,2]
[342501185,1731935449750,-596.36945709,9.999e-05,2]
[342501186,1731935462342,893.0,8e-05,6]
[342501188,1731935508087,151.0,8.329e-05,2]
[342501189,1731935573951,1407.54,8.219e-05,2]
[342501190,1731935594847,151.0,8.329e-05,2]
[342501193,1731936149136,150.0,1e-05,2]
[342501195,1731936199254,500.0,9e-05,3]
[342501196,1731936201502,1100.0,9.1e-05,3]
[342501197,1731936204414,1600.0,9.2e-05,3]
[342501198,1731936206530,2200.0,9.3e-05,3]
[342501199,1731936208646,2700.0,9.4e-05,3]
[342501200,1731936210794,500.0,9.5e-05,3]
[342501201,1731936212882,500.0,9.6e-05,3]
[342501202,1731936216503,500.0,9.7e-05,3]
[342501203,1731936218643,500.0,9.8e-05,3]
[342501204,1731936220746,1089.0,9.9e-05,3]
[342501205,1731936308093,1337.16,8.219e-05,2]
[342501405,1731936631496,-581.95,8.875e-05,2]
[342501406,1731936631506,-500.0,9e-05,2]
[342501407,1731936631515,-521.25,9.049e-05,2]
[342501408,1731936631529,-337.32,9.049e-05,2]
[342501409,1731936631540,-250.0,9.05e-05,2]
[342501410,1731936631549,-913.22,9.05e-05,2]
[342501411,1731936631561,-302.37,9.05e-05,2]
[342501412,1731936631570,-418.05,9.05e-05,2]
[342501413,1731936631579,-250.0,9.073e-05,2]
[342501414,1731936631588,-1000.0,9.085e-05,2]
[342501415,1731936631598,-825.3617,9.562e-05,2]
[342501416,1731936631607,-200.0,9.6e-05,2]
[342501417,1731936631616,-200.0,9.6e-05,2]
[342501418,1731936631626,-500.0,9.662e-05,2]
[342501419,1731936631635,-500.0,9.662e-05,2]
[342501420,1731936631647,-500.0,9.662e-05,2]
[342501421,1731936631656,-1360.523,9.7e-05,2]
[342501422,1731936631665,-3829.968256,9.8e-05,2]
[342501423,1731936631674,-364.24871982,9.9e-05,2]
[342501424,1731936631683,-500.52824788,9.973e-05,2]
[342501425,1731936631693,-500.0,9.973e-05,2]
[342501426,1731936631702,-642.03718362,9.973e-05,2]
[342501427,1731936631714,-6471.37368703,9.98e-05,2]
[342501428,1731936631723,-10192.77711603,9.982e-05,2]
[342501429,1731936631732,-581.95,9.984e-05,2]
[342501430,1731936631742,-150.0,9.989e-05,2]
[342501431,1731936631751,-14597.54265191,9.99e-05,2]
[342501432,1731936631760,-1467.476,9.99e-05,2]
[342501433,1731936631769,-170.664,9.99e-05,2]
[342501434,1731936631779,-214.3497441,9.992e-05,2]
[342501435,1731936631788,-1754.0880695,9.992e-05,2]
[342501436,1731936631798,-214.3497441,9.993e-05,2]
[342501437,1731936631807,-214.3497441,9.993e-05,2]
[342501438,1731936631816,-214.3497441,9.993e-05,2]
[342501439,1731936631825,-1534.5438324,9.993e-05,2]
[342501440,1731936631834,-463.28610747,9.993e-05,2]
[342501441,1731936631846,-851.71348773,9.993e-05,2]
[342501442,1731936631855,-76.43151227,9.993e-05,2]
[342501443,1731936631874,-1019.02384583,9.993e-05,2]
[342501444,1731936631883,-773.71615417,9.993e-05,2]
[342501445,1731936631913,-102.19496673,9.993e-05,2]
[342501446,1731936631922,-440.45575837,9.998e-05,2]
[342501448,1731936631932,-191.54424163,9.998e-05,2]
[342501450,1731936631941,-1084.09590904,9.999e-05,3]
[342501451,1731936631950,-200.0,9.999e-05,2]
[342501453,1731936631962,-200.0,9.999e-05,2]
[342501455,1731936631971,-619.95204741,9.999e-05,2]
[342501457,1731936631981,-500.0,9.999e-05,2]
[342501458,1731936631990,-500.0,9.999e-05,2]
[342501459,1731936631999,-425.29,9.999e-05,2]
[342501460,1731936632008,-473.31923861,9.999e-05,2]
[342501461,1731936632017,-500.0,9.999e-05,2]
[342501463,1731936632026,-500.0,9.999e-05,2]
[342501465,1731936632035,-500.0,9.999e-05,2]
[342501467,1731936632044,-500.0,9.999e-05,2]
[342501468,1731936632053,-500.0,9.999e-05,2]
[342501470,1731936632062,-506.78876381,9.999e-05,2]
[342501472,1731936632071,-500.0,9.999e-05,2]
[342501474,1731936632080,-500.74564911,9.999e-05,2]
[342501476,1731936632089,-501.20892013,9.999e-05,2]
[342501478,1731936632098,-500.0,9.999e-05,2]
[342501480,1731936632107,-500.0,9.999e-05,2]
[342501482,1731936632117,-500.0,9.999e-05,2]